Cogmind - Beta 14 @@@ ROGUE MODE // 2024.08.07 @ 21:27:30 Player: Dosh Result: Destroyed by P-60 Hacker with Shock Rifle Performance ------------- Evolutions (0) 0 Regions Visited (3) 600 Robots Destroyed (47) 235 Value Destroyed (1269) 1269 Prototype IDs (0) 0 Alien Tech Used (0) 0 Bonus (0) 0 TOTAL SCORE: 2104 Bonus ------- None Cogmind --------- Core Integrity 0/250 Matter 149/300 Energy 100/100 System Corruption 0% Temperature Cool (0) Movement Core (50) Location -7/Recycling Parts ------- > --- POWER (1) -------- (None) > --- PROPULSION (2) --- (None) > --- UTILITY (2) ------ (None) > --- WEAPON (2) ------- (None) > --- INVENTORY (5) ---- Scrap Shield Peak State ------------ > --- POWER ------------ Light Ion Engine > --- PROPULSION ------- Spiked Treads Spiked Treads > --- UTILITY ---------- Huge Storage Unit > --- WEAPON ----------- Heavy Assault Rifle Ripper > --- INVENTORY -------- Scrap Shield Power Bank Battle Cannon Rocket Launcher Multitool SUBCON Basin [Rating: 31] Favorites ----------- Power Light Ion Engine Engine Light Ion Engine Propulsion Spiked Treads Treads Spiked Treads Wheel Subdweller Monowheel Utility Scrap Shield Device Structural Scanner Storage Large Storage Unit Processor Targeting Computer Protection Scrap Shield Weapon Heavy Assault Rifle Ballistic Gun Heavy Assault Rifle Ballistic Cannon Battle Cannon Launcher Rocket Launcher Special Weapon Mining Laser Slashing Weapon Ripper Build | -11 -10 -10 -7 ------- Run | Yrd Mat Sub Rec Slots Evolved . | . . . . Power . | . . . . Propulsion . | . . . . Utility . | . . . . Weapon . | . . . . Parts Attached 57 | 6 16 30 5 Power 7 | 2 2 2 1 Engine 7 | 2 2 2 1 Core . | . . . . Reactor . | . . . . Propulsion 12 | 2 4 6 . Treads 11 | 2 4 5 . Leg . | . . . . Wheel 1 | . . 1 . Hover . | . . . . Flight . | . . . . Utility 10 | 1 4 2 3 Device 1 | . . . 1 Storage 4 | 1 1 1 1 Processor 1 | . 1 . . Hackware . | . . . . Protection 4 | . 2 1 1 Artifact . | . . . . Weapon 28 | 1 6 20 1 Energy Gun . | . . . . Energy Cannon . | . . . . Ballistic Gun 15 | 1 5 8 1 Ballistic Cannon 5 | . . 5 . Launcher 1 | . . 1 . Special Weapon 3 | . 1 2 . Impact Weapon . | . . . . Slashing Weapon 4 | . . 4 . Piercing Weapon . | . . . . Special Melee Weapon . | . . . . Unidentified Prototypes . | . . . . Parts Lost 7 | . 1 4 2 Power 2 | . . 2 . Propulsion 3 | . 1 2 . Utility . | . . . . Weapon 2 | . . . 2 Highest Loss Streak 2 | . 1 2 1 To Critical Strikes . | . . . . Average Slot Usage (%) 89 | . 94 88 76 Engine 13 | . 14 13 7 Treads 26 | . 27 25 28 Wheel 1 | . . 2 . Storage 8 | . 14 5 13 Protection 11 | . 11 12 . Ballistic Gun 18 | . 23 17 9 Ballistic Cannon 4 | . . 6 4 Slashing Weapon 2 | . . 3 4 Peak Build Rating 31 | 5 11 31 30 Average Rating 14 | 3 8 15 26 On Entrance 11 | . 5 11 30 Naked Turns 2 | . . . 2 Heaviest Build 89 | 12 32 89 87 Greatest Support 40 | 40 40 40 40 Greatest Overweight (x) 2 | . 1 2 2 Average Overweight (x) . | . . . 1 Largest Inventory Capacity 25 | 8 15 25 25 Average Capacity 11 | 5 13 10 23 Most Carried 21 | 1 15 21 21 Average Carried 10 | . 10 9 17 Final Capacity 25 | 8 15 25 5 Final Carried 21 | 1 15 21 2 Class Distribution -------------------- 95% | Mutant 3% | Derelict-Mutant Dominant Class ---------------- Mutant | -10/Materials Mutant | -10/Subcaves Mutant | -7/Recycling Resources | -11 -10 -10 -7 ----------- Run | Yrd Mat Sub Rec Matter Collected 1538 | 229 525 737 47 Remotely . | . . . . Salvage Created 1633 | . 766 495 372 Parts 93 | . 50 32 11 Haulers Intercepted 2 | . 2 . . Recyclers Shooed 1 | . . . 1 Parts Field Recycled . | . . . . Retrieved Matter . | . . . . Parts Self-Destructed 5 | . . 5 . Prevented . | . . . . Kills | -11 -10 -10 -7 ------- Run | Yrd Mat Sub Rec Combat Hostiles Destroyed 33 | . 17 13 3 Guns 26 | . 17 9 . Cannons 4 | . . 4 . AOE 3 | . . . 3 Classes Destroyed 10 | . 6 1 3 Worker 2 | . 2 . . Builder 1 | . . . 1 Hauler 2 | . 2 . . Recycler 5 | . . . 5 Operator 2 | . 2 . . Watcher 2 | . 2 . . Swarmer 6 | . 6 . . Grunt 13 | . 11 . 2 Duelist 1 | . . . 1 Subdweller 13 | . . 13 . Best Kill Streak 9 | . 5 2 9 Combat Bots Only 5 | . 5 2 3 Max Kills in Single Turn 6 | . 1 1 6 Gunslinging . | . . . . Exploded 2 | . . . 2 Melee . | . . . . Uniques/NPCs Destroyed . | . . . . Combat | -11 -10 -10 -7 -------- Run | Yrd Mat Sub Rec Hostile Shots Fired 222 | . 79 115 28 Missed 76 | . 26 37 13 Damage Taken 2228 | . 563 1357 308 Core 260 | . 68 147 45 Absorbed by Shields . | . . . . Redirected to Shielding 27 | . 12 15 . Regen/Repaired (Parts) 98 | . 98 . . Core Remaining (%) 100 | 100 . . . Volleys Fired 184 | . 83 87 14 Largest 2 | . 2 2 2 Hottest 123 | . 100 123 62 Shots Fired 313 | . 137 159 17 Gun 251 | . 135 110 6 Cannon 56 | . . 45 11 Launcher 1 | . . 1 . Special 5 | . 2 3 . Kinetic 307 | . 135 155 17 Thermal 5 | . 2 3 . Explosive 1 | . . 1 . Electromagnetic . | . . . . Robot Hit Streak 24 | . 8 24 5 Robot Miss Streak 5 | . 5 2 1 Penetration Max . | . . . . Secondary Targets 3 | . 3 . . Max Gunslinging Chain 1 | . 1 . . Shots Hit Robots 174 | . 77 90 7 Core Hits 75 | . 38 25 12 Critical Kills 1 | . 1 . . Critical Parts Destroyed . | . . . . Critical Strikes 7 | . 1 6 . Destroy 3 | . 1 2 . Blast 4 | . . 4 . Melee Attacks 26 | . . 23 3 Impact . | . . . . Slashing 26 | . . 23 3 Piercing . | . . . . Sneak Attacks . | . . . . Combat Hostiles . | . . . . Follow-up Attacks . | . . . . Damage Inflicted 3541 | . 997 1665 879 Guns 2158 | . 989 1108 61 Cannons 559 | . . 492 67 Explosions 816 | . . 65 751 Melee . | . . . . Ramming 8 | . 8 . . Kinetic 2717 | . 989 1600 128 Thermal . | . . . . Explosive 816 | . . 65 751 Electromagnetic . | . . . . Impact . | . . . . Slashing . | . . . . Piercing . | . . . . Highest Corruption . | . . . . Average Corruption . | . . . . Corruption Purged . | . . . . Corruption Blocked . | . . . . Overload Shots . | . . . . Overflow Damage 92 | . . . 92 Projectiles . | . . . . Explosions 92 | . . . 92 Melee . | . . . . Knockbacks 7 | . . 6 1 Impact . | . . . . Kinetic 7 | . . 6 1 Secondary . | . . . . Self-Inflicted Damage 126 | . . . 126 Shots 2 | . . . 2 Rammed 3 | . 3 . . Targets Rammed 4 | . 4 . . Kicked . | . . . . Crushed 1 | . 1 . . Highest Temperature 40 | . 40 . 4 Average Temperature 9 | . 10 . 4 Received Heat Transfer 546 | . 201 288 57 Siege Activations . | . . . . Robots Corrupted . | . . . . Combat Hostiles . | . . . . Parts Fried . | . . . . Impact Corruptions . | . . . . Robots Melted . | . . . . Combat Hostiles . | . . . . Parts Melted . | . . . . Heat Transferred . | . . . . Parts Sabotaged . | . . . . Parts Stolen . | . . . . Parts Stripped . | . . . . Power Chain Reactions . | . . . . Alert | -11 -10 -10 -7 ------- Run | Yrd Mat Sub Rec Peak Influence 280 | . 280 . 193 Initial 12 | . . . 12 Average 120 | . 122 . 137 Maximum Alert Level 1 | . 1 . . Low Security (%) 86 | 100 82 . 100 Level 1 13 | . 17 . . Level 2 . | . . . . Level 3 . | . . . . Level 4 . | . . . . Level 5 . | . . . . High Security . | . . . . Max Security . | . . . . Squads Dispatched 4 | . 4 . . Investigation 2 | . 2 . . Extermination . | . . . . Reinforcement 2 | . 2 . . Assault . | . . . . Garrison . | . . . . Intercept . | . . . . Searches Triggered . | . . . . Construction Impeded . | . . . . Haulers Reinforced . | . . . . Active Scanning Responses . | . . . . Cargo Convoy Interrupts . | . . . . Stealth | -11 -10 -10 -7 --------- Run | Yrd Mat Sub Rec Distress Signals 3 | . 3 . . Communications Jammed . | . . . . Distress Signals . | . . . . Times Spotted 57 | . 30 16 11 Peak Tracking Total 7 | . 5 2 7 Tactical Retreats 3 | . . 3 . Traps | -11 -10 -10 -7 ------- Run | Yrd Mat Sub Rec Traps Triggered 5 | . 4 1 . Indirectly . | . . . . Trap Hack Attempts . | . . . . Triggered . | . . . . Disarmed . | . . . . Reprogrammed . | . . . . Reused . | . . . . Traps Extracted . | . . . . Installed . | . . . . Triggered . | . . . . Machines | -11 -10 -10 -7 ---------- Run | Yrd Mat Sub Rec Machines Disabled 4 | . . . 4 Max in Single Turn 2 | . . . 2 Machines Repaired . | . . . . Machines Dismantled . | . . . . Machines Sabotaged . | . . . . Overloaded Fab Kills . | . . . . Hacking | -11 -10 -10 -7 --------- Run | Yrd Mat Sub Rec Machines Accessed 13 | . 8 3 2 Terminals 7 | . 6 . 1 Fabricators . | . . . . Repair Stations 1 | . 1 . . Recycling Units 2 | . 1 . 1 Scanalyzers . | . . . . Garrison Access . | . . . . Total Hacks 32 | . 24 6 2 Successful 14 | . 6 6 2 Failed 17 | . 17 . . Catastrophic 3 | . 3 . . Database Lockouts 1 | . 1 . . Manual 13 | . 11 . 2 Terminals 17 | . 16 . 1 Fabricators . | . . . . Repair Stations 6 | . 6 . . Recycling Units 3 | . 2 . 1 Scanalyzers . | . . . . Garrison Access . | . . . . Terminal Hacks 8 | . 1 6 1 Record 4 | . . 4 . Robot Analysis 1 | . 1 . . Open Door 1 | . . 1 . Zone Layout 1 | . . . 1 Release Object 1 | . . 1 . Fabricator Hacks . | . . . . Repair Station Hacks 4 | . 4 . . Scan Component 2 | . 2 . . Repair 2 | . 2 . . Recycling Unit Hacks . | . . . . Scanalyzer . | . . . . Garrison Access Hacks . | . . . . Unauthorized Hacks 2 | . 1 . 1 Terminals 1 | . 1 . . Botnet 1 | . 1 . . Fabricators . | . . . . Repair Stations . | . . . . Recycling Units 1 | . . . 1 Tunnel 1 | . . . 1 Scanalyzers . | . . . . Garrison Access . | . . . . Data Cores Recovered 1 | . 1 . . Used 1 | . 1 . . Hacking Detections 7 | . 7 . . Full Trace Events 2 | . 2 . . Feedback Events . | . . . . Feedback Blocked . | . . . . Robot Schematics Acquired . | . . . . Robots Built . | . . . . Authchips . | . . . . Time . | . . . . Total Robot Build Rating . | . . . . Part Schematics Acquired . | . . . . Parts Built . | . . . . Authchips . | . . . . Time . | . . . . Total Part Build Rating . | . . . . Parts Repaired 2 | . 2 . . Time 52 | . 52 . . Parts Recycled . | . . . . Recycled Matter . | . . . . Retrieved Matter . | . . . . Retrieved Components . | . . . . Parts Scanalyzed . | . . . . Part Schematics Acquired . | . . . . Parts Damaged . | . . . . Bothacking | -11 -10 -10 -7 ------------ Run | Yrd Mat Sub Rec Used RIF Installer . | . . . . Robots Hacked . | . . . . Non-combat . | . . . . Combat . | . . . . Robot Hacks Applied . | . . . . Relay Couplers Released . | . . . . Fabnet Peak Effective % . | . . . . Robots Rewired . | . . . . Allies Hacked . | . . . . Hacks Repelled . | . . . . Allies | -11 -10 -10 -7 -------- Run | Yrd Mat Sub Rec Total Allies . | . . . . Largest Group . | . . . . Highest-Rated Group . | . . . . Highest-Rated Ally . | . . . . Total Orders . | . . . . Ally Attacks . | . . . . Total Damage . | . . . . Kills . | . . . . Allies Corrupted . | . . . . Allies Melted . | . . . . Intel | -11 -10 -10 -7 ------- Run | Yrd Mat Sub Rec Robot Analysis Total 1 | . 1 . . Derelict Logs Recovered 1 | . . 1 . Drone Launches . | . . . . Drone Recoveries . | . . . . Exploration | -11 -10 -10 -7 ------------- Run | Yrd Mat Sub Rec Turns Passed 6574 | 76 1586 4554 358 Spaces Moved 3354 | 44 780 2441 89 Core 5 | 2 . . 3 Treads 2822 | 42 780 1914 86 Legs . | . . . . Wheels 527 | . . 527 . Hover . | . . . . Flight . | . . . . Fastest Speed 50 | 50 160 110 50 Average Speed 168 | 155 160 164 340 Slowest Speed 360 | 160 240 360 360 Overloaded Moves . | . . . . Propulsion Burnouts . | . . . . Robots Hopped . | . . . . Cave-ins Triggered . | . . . . Exploration Rate (%) 50 | 4 99 85 14 Regions Visited 3 Branch Regions 2 Pre-discovered Areas 3 | . . 2 1 Known Exits Taken . | . . . . Unknown Exits Taken 3 | 1 1 1 . Scrap Searched 11 | . . 11 . Spaces Dug 26 | . 2 19 5 Terrain Destroyed 43 | . 2 26 15 Melee 14 | . . 13 1 Projectile 12 | . 2 6 4 AOE 17 | . . 7 10 Terrain Rammed . | . . . . Walls Destroyed . | . . . . Machines Disabled . | . . . . Actions | -11 -10 -10 -7 --------- Run | Yrd Mat Sub Rec Total 3922 | 49 976 2776 121 Wait 234 | . 69 162 3 Move 3351 | 43 779 2440 89 Hop . | . . . . Pick Up 27 | . 17 7 3 Fast Attach 22 | 5 9 5 3 Attach 5 | . 1 3 1 Detach 4 | . 2 1 1 Swap 30 | 1 6 22 1 Drop 25 | . 6 17 2 Fire 184 | . 83 87 14 Melee 26 | . . 23 3 Ram . | . . . . Kick . | . . . . Crush 4 | . 4 . . Escape Stasis . | . . . . Rewire . | . . . . Trap . | . . . . Miscellaneous 10 | . . 9 1 Route ------- -11/Scrapyard -10/Materials (discovered 6 exits: [*Mat x3] / [*Min x2] / *Sub) -10/Subcaves (discovered 2 exits: [*Mat] / *Rec) -7/Recycling (discovered 1 exit: [*Fac]) History --------- Turn | Location | Event 12 | -11/Scrapyard | Discovered new exit (range 15) 77 | -11/Scrapyard | Entered Materials 300 | -10/Materials | Build established: Mutant 386 | -10/Materials | Discovered new exit (range 16) 761 | -10/Materials | Discovered new exit (range 6) 1032 | -10/Materials | Repaired Lgt. Treads 1060 | -10/Materials | Repaired Lgt. Treads 1083 | -10/Materials | Discovered new exit (range 8) 1105 | -10/Materials | Central database locked down 1251 | -10/Materials | Discovered new exit (range 7) 1517 | -10/Materials | Discovered new exit (range 16) 1655 | -10/Materials | Discovered new exit (range 6) 1663 | -10/Materials | Entered Subcaves 1685 | -10/Subcaves | Learned location of Zion (-7) 1685 | -10/Subcaves | Met a Zionite searching for "candidates" 2167 | -10/Subcaves | Visited Clippyterm 2172 | -10/Subcaves | Learned Factory trap positions 2516 | -10/Subcaves | Core integrity fell below 50% 2885 | -10/Subcaves | Shifting Twisted Machinery released Scrap Shield 2888 | -10/Subcaves | Shifting Twisted Machinery released Multitool 3089 | -10/Subcaves | Disturbed a concealed Subdweller 3587 | -10/Subcaves | Shifting Twisted Machinery released Sub. Monowheel 3885 | -10/Subcaves | A swath of the cavern ceiling suddenly collapsed 3948 | -10/Subcaves | A swath of the cavern ceiling suddenly collapsed 4039 | -10/Subcaves | Discovered new exit (range 8) 4073 | -10/Subcaves | Disturbed a concealed Subdweller 4481 | -10/Subcaves | Core integrity fell below 20% 4551 | -10/Subcaves | Found Prototype Device 5152 | -10/Subcaves | Ambushed by Subdweller buried in earth 5619 | -10/Subcaves | Found SUBCON Basin 6188 | -10/Subcaves | Discovered new exit (range 8) 6217 | -10/Subcaves | Entered Recycling 6218 | -7/Recycling | Met a Zionite searching for Scraptown 6545 | -7/Recycling | Discovered new exit (range 6) 6571 | -7/Recycling | Released subatomizers from SUBCON Basin 6571 | -7/Recycling | Angered Scraplab inhabitants 6573 | -7/Recycling | Released all parts (5) 6575 | -7/Recycling | Destroyed by P-60 Hacker with Shock Rifle Last Messages --------------- 06430_ U-05 Engineer lays Concrete. 06432_ U-05 Engineer builds a Wall. 06434_ U-05 Engineer lays Concrete. 06465_ U-05 Engineer builds a Wall. 06469_ U-05 Engineer lays Concrete. 06545_ EXIT=FOUND 06569_ B-48 Gladiator springs to life. 06569_ Y-54 Guardian springs to life. 06569_ B-48 Gladiator springs to life. 06570_ P-60 Hacker springs to life. 06570_ G-47 Trooper destroyed. 06570_ L-41 Fighter springs to life. 06571_ Dropped SUBCON Basin. 06571_ Hvy. Assault Rifle destroyed. 06571_ Released subatomizers from SUBCON Basin. 06572_ Acquired SUBCON Basin. 06573_ Released Structural Scanner. 06573_ Released Spk. Treads. 06573_ Released Huge Storage Unit. 06573_ Released Lgt. Ion Engine. Map ----- +----------------------------------------------------+ | ?????????????????????????????????????????????????? | | ?????????????????????????????????????????????????? | | ?????????????????????????????????????????????????? | | ?????????????????????????????????????????????????? | | ?????????????????????????????????????????????????? | | ?????????????????????????????????????????????????? | | ?????????????????????????????????????????????????? | | ?????????????????????????????????????????????????? | | ?????????????????????????????????????????????????? | | ?????????????????????????????????????????????????? | | ?????????????????????????????????????????????????? | | ?????????????????????????????????????????????????? | | ?????????????????????????????????????????????????? | | ??? #???????????????????????????????????????????? | | ???#+#???????????????????????????????????????????? | | ??## ##??????????????????????????????????????????? | | ??## ##??????????????????????????????????????????? | | #### # ??????????????????????????????????????????? | | #### # ??????????????????????????????????????????? | | # # ??????????????????????????????????????????? | | + + ??????????????????????????????????????????? | | # # ### #####??????????? | | # ###+###################+##########??????????? | | # # ??????????? | | + *=& # ??????????? | | # @ =p!! Y # ??????????? | | ############+############/##### # ??????????? | | # ### ### %! ## + ??????????? | | ####????????????????????[ ### # ??????????? | | ####???????????????????! ### # ??????????? | | ###???????????????????? !%### # ??????????? | | #####???????????????????? ! ### < # ??????????? | | #####???????????????????? ] !### ##??????????? | | ???????????????????????? ! ########??????????? | | ????????????????????????! ########??????????? | | ??????????????????????# ! ! ##????????????????? | | ??????????????????????###########????????????????? | | ??????????????????????###########????????????????? | | ?????????????????????????????????????????????????? | | ?????????????????????????????????????????????????? | | ?????????????????????????????????????????????????? | | ?????????????????????????????????????????????????? | | | | | | | | | | | | | | | | | +----------------------------------------------------+ Best States ------------- Heat Dissipation 25 Energy Generation 15 Energy Capacity 250 Matter Stores 300 Matter Capacity 300 Sight Range 16 Terrain Scan Density 10 Armor Coverage 800 Core Shielding 20 Weapon Shielding 33 Evasion (%) 40 Targeting Accuracy 5 Recoil Reduction 2 Item Schematics ----------------- None Robot Schematics ------------------ None Fabricated ------------ Nothing Alien Tech Used ----------------- None Achievements -------------- None Challenges ------------ None Game ------ Seed LegSalvagingLauncher Manual? 0 Play Time 00:30:00 Cumulative 449.3 hours Start 2024.08.07 @ 20:56:45 End 2024.08.07 @ 21:27:30 Sessions 1 Manual Loads 0 Difficulty Rogue Special Mode None Game No. 272 Rogue 272 Adventurer 0 Explorer 0 Win Type - Total 31 Types 23/2/3/1/1/0/0/1/0 Lore% 57 Gallery% 82 Achievement% 84 Wizard Run 0 Options --------- Layout 0 ASCII 0 Keyboard 1 Movement Numpad Keybinds 0 Fullscreen 2 Font 18/SmallcapsGlow Map View 76x50 Zoom Use 0% Tactical HUD 1 Map Filters NONE Filters NONE Steam 1 RUN: d947aac5-ba31-47bd-8556-7afd14a7f911